bitfinex-derivatives/quotes_BTCF0:USTF0_20250827
["timestamp","ask_amount","ask_price","bid_price","bid_amount"]
[1756318934295,0.65730071,112630.0,112620.0,1.14511735]
[1756318934598,1.01810071,112630.0,112620.0,0.31747735]
[1756318934798,1.01810071,112630.0,112620.0,1.14511735]
[1756318935803,0.58371463,112630.0,112620.0,0.26639735]
[1756318936096,1.29418796,112630.0,112620.0,0.89717953]
[1756318936594,1.29418781,112630.0,112620.0,1.03624953]
[1756318937295,1.29418781,112630.0,112620.0,1.12502953]
[1756318938098,1.29418781,112630.0,112620.0,1.01302953]
[1756318938298,1.29418781,112630.0,112620.0,0.18542953]
[1756318938496,1.29418781,112630.0,112620.0,1.01298953]
[1756318938692,1.29418781,112630.0,112620.0,0.15274953]
[1756318938890,1.29418781,112630.0,112620.0,0.96190953]
[1756318939200,1.65498781,112630.0,112620.0,0.96190953]
[1756318939397,1.65498781,112630.0,112620.0,0.06957953]
[1756318939694,0.1903281,112610.0,112600.0,0.84709681]
[1756318939899,1.03518154,112610.0,112600.0,0.91176681]
[1756318940800,1.03518154,112610.0,112600.0,0.96284681]
[1756318941102,1.03518154,112610.0,112600.0,0.98606681]
[1756318941395,1.03518154,112610.0,112600.0,0.96284681]
[1756318941993,1.03518154,112610.0,112600.0,0.98606681]
[1756318942800,1.03518154,112610.0,112600.0,0.93016681]
[1756318942987,1.03518154,112610.0,112600.0,0.96284681]
[1756318943698,1.03518154,112610.0,112600.0,0.10264681]
[1756318943894,1.64598154,112610.0,112600.0,0.85508]
[1756318944398,1.64598154,112610.0,112600.0,0.0276]
[1756318944701,0.1558839,112590.0,112580.0,1.79187151]
[1756318944898,0.95106998,112590.0,112580.0,2.61925151]
[1756318945102,0.95106998,112590.0,112580.0,1.79177151]
[1756318945401,0.95106998,112590.0,112580.0,2.61925151]
[1756318946096,0.95106998,112590.0,112580.0,1.79377151]
[1756318946304,0.95106998,112590.0,112580.0,2.62129151]
[1756318947300,0.95106998,112590.0,112580.0,2.58861151]
[1756318947606,0.95106998,112590.0,112580.0,2.71010321]
[1756318948703,0.5166839,112590.0,112580.0,2.71010321]
[1756318949101,0.4731839,112590.0,112580.0,2.71010321]
[1756318949301,0.04355,112600.0,112580.0,2.71010321]
[1756318949302,0.1281397,112600.0,112590.0,0.2311338]
[1756318949502,0.1042197,112600.0,112590.0,0.2311338]
[1756318949702,0.4650197,112600.0,112590.0,0.14233]
[1756318950005,0.5464497,112600.0,112590.0,0.2311338]
[1756318950301,0.5464497,112600.0,112590.0,0.14233]
[1756318950602,1.00831578,112600.0,112590.0,0.14233]
[1756318951103,1.00831578,112600.0,112590.0,0.96981]
[1756318952700,1.00831578,112600.0,112590.0,0.14233]
[1756318952902,1.00831578,112600.0,112590.0,0.96981]
[1756318953701,1.00831578,112600.0,112590.0,0.94727]
[1756318954507,1.00831578,112600.0,112590.0,0.96981]
[1756318956307,0.5305797,112600.0,112590.0,0.96981]
[1756318956501,0.98083578,112600.0,112590.0,0.96981]
[1756318956808,1.00831578,112600.0,112590.0,0.96981]
[1756318957810,1.00831578,112600.0,112590.0,1.0586138]
[1756318958506,1.00831578,112600.0,112590.0,0.96981]
[1756318958708,0.98083578,112600.0,112590.0,1.0586138]
[1756318959914,0.89940578,112600.0,112590.0,1.0586138]
[1756318961014,0.4650197,112600.0,112590.0,1.0586138]
[1756318961316,0.96647578,112600.0,112590.0,1.0586138]
[1756318961905,0.4887397,112600.0,112590.0,1.0586138]
[1756318962110,0.89940578,112600.0,112590.0,1.0586138]
[1756318962312,1.00831578,112600.0,112590.0,0.96969]
[1756318963515,1.00831578,112600.0,112590.0,1.0584938]
[1756318963715,1.00831578,112600.0,112590.0,0.96969]
[1756318964410,0.5739297,112600.0,112590.0,0.96969]
[1756318964611,1.00831578,112600.0,112590.0,0.96969]
[1756318965523,1.00831578,112600.0,112590.0,1.0584938]
[1756318965716,1.00831578,112600.0,112590.0,0.96965]
[1756318967213,1.00831578,112600.0,112590.0,0.1081]
[1756318967412,1.44270186,112600.0,112590.0,0.85692]
[1756318967618,1.28448996,112600.0,112590.0,0.92812]
[1756318967917,1.28449012,112600.0,112590.0,0.92812]
[1756318968115,1.28449012,112600.0,112590.0,0.96961]
[1756318971619,1.28449012,112600.0,112590.0,0.14233]
[1756318971821,0.2131338,112590.0,112580.0,0.16172151]
[1756318972124,1.00831988,112590.0,112580.0,0.90104151]
[1756318973422,1.00831988,112590.0,112580.0,0.16172151]
[1756318973618,1.00831988,112590.0,112580.0,0.98892151]
[1756318974117,1.00831988,112590.0,112580.0,0.99092151]
[1756318974724,1.00831988,112590.0,112580.0,0.16372151]
[1756318974928,1.00831988,112590.0,112580.0,0.99088151]
[1756318975525,1.03452702,112590.0,112580.0,0.99088151]
[1756318976020,0.60014094,112590.0,112580.0,0.99088151]
[1756318976231,1.03452702,112590.0,112580.0,0.99088151]
[1756318979431,1.03452702,112590.0,112580.0,0.12949151]
[1756318979626,1.03452702,112590.0,112580.0,0.98874151]
[1756318980126,1.03452702,112590.0,112580.0,0.12949151]
[1756318980329,1.03452702,112590.0,112580.0,0.93403151]
[1756318980330,1.18192702,112590.0,112580.0,0.93403151]
[1756318980525,1.18192702,112590.0,112580.0,0.96616151]
[1756318980829,1.18192702,112590.0,112580.0,0.98900151]
[1756318981421,1.18192702,112590.0,112580.0,1.07781301]
[1756318982133,0.55679094,112590.0,112580.0,1.07781301]
[1756318982328,0.49123094,112590.0,112580.0,1.07781301]
[1756318982633,0.53021094,112590.0,112580.0,1.07781301]
[1756318982933,0.5040038,112590.0,112580.0,1.07781301]
[1756318983132,0.5302064,112590.0,112580.0,1.07781301]
[1756318983328,0.4912264,112590.0,112580.0,1.07781301]
[1756318983635,0.0002,112600.0,112590.0,0.1899137]
[1756318983932,0.49233386,112610.0,112600.0,0.2284158]
[1756318984127,0.47579374,112610.0,112600.0,1.48980188]
[1756318985327,0.02620044,112610.0,112600.0,1.0554158]
[1756318985920,1.07055158,112620.0,112600.0,1.0554158]
[1756318985921,0.5971819,112620.0,112610.0,0.0887879]
[1756318986124,0.5971819,112620.0,112610.0,0.66279398]
[1756318986125,0.62316933,112620.0,112610.0,0.66279398]
[1756318986324,0.62316933,112620.0,112610.0,0.2284079]
[1756318986525,0.38698743,112620.0,112610.0,0.93221309]
[1756318986727,0.45857259,112630.0,112620.0,0.2284]
[1756318986922,0.36959719,112630.0,112620.0,0.66278608]
[1756318987123,0.00879719,112630.0,112620.0,0.66278608]
[1756318987328,0.1051121,112630.0,112620.0,0.13962]
[1756318987535,0.96060818,112630.0,112620.0,0.96654]
[1756318987735,0.98013818,112630.0,112620.0,0.13962]
[1756318987934,1.00798818,112630.0,112620.0,0.96654]
[1756318988737,1.01668366,112630.0,112620.0,0.96654]
[1756318989334,1.01668366,112630.0,112620.0,0.9665]
[1756318989633,1.01668366,112630.0,112620.0,0.13962]
[1756318989831,1.01668366,112630.0,112620.0,0.84038]
[1756318990837,1.01668366,112630.0,112620.0,0.13962]
[1756318991337,1.01668366,112630.0,112620.0,0.10749]
[1756318991541,0.1969401,112620.0,112610.0,0.81466911]
[1756318991738,1.00799618,112620.0,112610.0,0.98583911]
[1756318992231,1.00799618,112620.0,112610.0,1.07462701]
[1756318992536,0.98014618,112620.0,112610.0,1.07462701]
[1756318992733,1.00799618,112620.0,112610.0,1.07462701]
[1756318994030,1.00799618,112620.0,112610.0,0.24782701]
[1756318994236,1.00799618,112620.0,112610.0,1.07454701]
[1756318996033,1.25799618,112620.0,112610.0,0.98575911]
[1756318996340,1.25799618,112620.0,112610.0,0.98571911]
[1756318997543,1.25799618,112620.0,112610.0,0.15903911]
[1756318997836,1.25799618,112620.0,112610.0,0.98567911]
[1756318999540,1.25799618,112620.0,112610.0,0.15903911]
[1756318999741,1.25799618,112620.0,112610.0,0.98563911]
[1756319000240,1.25799618,112620.0,112610.0,0.08465]
[1756319000445,1.25799618,112620.0,112610.0,0.96622]
[1756319001941,1.25799618,112620.0,112610.0,1.055008]
[1756319001942,0.5736101,112620.0,112610.0,1.055008]
[1756319002138,1.00799618,112620.0,112610.0,1.055008]
[1756319002943,1.00799618,112620.0,112610.0,0.96622]
[1756319004342,1.00799618,112620.0,112610.0,0.9433]
[1756319004542,1.00799618,112620.0,112610.0,0.96614]
[1756319007537,1.00799618,112620.0,112610.0,0.96606]
[1756319007845,1.00799618,112620.0,112610.0,0.91109]
[1756319008345,1.00799618,112620.0,112610.0,0.94322]
[1756319010248,1.00799618,112620.0,112610.0,0.96651]
[1756319013443,0.98014618,112620.0,112610.0,1.0552979]
[1756319013653,0.90030618,112620.0,112610.0,1.3052979]
[1756319013955,0.37714,112620.0,112610.0,1.73968398]
[1756319014145,0.3608,112620.0,112610.0,1.73968398]
[1756319014748,0.94742406,112630.0,112620.0,0.08878]
[1756319014950,1.01469808,112630.0,112620.0,0.23183]
[1756319016650,0.484422,112630.0,112620.0,0.23183]
[1756319016855,0.4844217,112630.0,112620.0,0.91621608]
[1756319017154,0.5803117,112630.0,112620.0,0.91621608]
[1756319017354,0.5803117,112630.0,112620.0,0.48183]
[1756319017853,1.01469778,112630.0,112620.0,0.48183]
[1756319018753,0.98854376,112630.0,112620.0,0.48183]
[1756319019756,1.01468867,112630.0,112620.0,0.48183]
[1756319020154,0.58030259,112630.0,112620.0,0.48183]
[1756319020353,0.11348768,112630.0,112620.0,0.48183]
[1756319020749,0.19335768,112630.0,112620.0,0.48183]
[1756319020945,0.19335768,112630.0,112620.0,1.30799]
[1756319021657,0.13616768,112630.0,112620.0,1.30799]
[1756319021859,0.11348768,112630.0,112620.0,1.30799]
[1756319022152,0.09746768,112630.0,112620.0,1.30799]
[1756319022655,0.5456584,112640.0,112630.0,0.0887721]
[1756319022852,0.55572869,112640.0,112630.0,0.2318221]
[1756319023049,0.57159869,112640.0,112630.0,0.2318221]
[1756319023250,0.58064889,112640.0,112630.0,0.2318221]
[1756319023954,1.01503497,112640.0,112630.0,1.0579021]
[1756319024258,1.01503497,112640.0,112630.0,0.2318221]
[1756319024649,1.04248497,112640.0,112630.0,1.0578621]
[1756319025060,0.50077889,112640.0,112630.0,1.0578621]
[1756319025259,0.97371497,112640.0,112630.0,1.0578621]
[1756319025454,0.53932889,112640.0,112630.0,1.0578621]
[1756319025649,1.04248497,112640.0,112630.0,1.0578222]
[1756319026063,1.01503497,112640.0,112630.0,1.0578222]
[1756319026264,1.04248497,112640.0,112630.0,1.0578222]
[1756319027955,1.04248497,112640.0,112630.0,0.2318222]
[1756319028161,1.04248497,112640.0,112630.0,1.0577422]
[1756319028364,0.60809889,112640.0,112630.0,1.0577422]
[1756319028561,0.58064889,112640.0,112630.0,1.0577422]
[1756319028757,1.01503497,112640.0,112630.0,1.0577422]
[1756319029162,0.49188049,112640.0,112630.0,1.0577422]
[1756319029458,0.56546657,112640.0,112630.0,1.0577422]
[1756319029662,0.02614029,112640.0,112630.0,1.74212828]
[1756319029866,0.361,112650.0,112640.0,0.2318147]
[1756319030064,0.44148039,112650.0,112640.0,0.2318147]
[1756319030262,0.44148039,112650.0,112640.0,1.0576947]
[1756319030660,0.94463647,112650.0,112640.0,0.2318147]
[1756319030866,0.48280039,112650.0,112640.0,1.0576547]
[1756319031167,0.91718647,112650.0,112640.0,1.0576547]
[1756319031364,0.55638647,112650.0,112640.0,1.0576547]
[1756319031559,0.91718647,112650.0,112640.0,1.0576547]
[1756319032462,0.92589101,112650.0,112640.0,1.0576547]
[1756319032967,0.49150493,112650.0,112640.0,1.0576547]
[1756319033268,0.92589101,112650.0,112640.0,1.0576547]
[1756319034172,0.53898062,112650.0,112640.0,1.0576547]
[1756319035270,0.45911062,112650.0,112640.0,1.0576547]
[1756319035661,0.49766062,112650.0,112640.0,1.0576547]
[1756319036366,0.58641742,112650.0,112640.0,1.0576547]
[1756319036763,0.49766062,112650.0,112640.0,1.0576547]
[1756319037771,0.58641742,112650.0,112640.0,1.0576547]
[1756319039166,0.49766062,112650.0,112640.0,1.0576547]
[1756319039367,0.58641742,112650.0,112640.0,1.0576547]
[1756319039663,0.49766062,112650.0,112640.0,1.0576547]
[1756319039868,0.01602,112650.0,112640.0,1.51147433]
[1756319040966,0.01602,112650.0,112640.0,1.07708825]
[1756319041167,0.45040608,112650.0,112640.0,0.25124825]
[1756319041364,0.48905608,112650.0,112640.0,1.07684825]
[1756319041573,0.48905608,112650.0,112640.0,1.07680825]
[1756319041574,0.57781288,112650.0,112640.0,1.07680825]
[1756319042068,0.48905608,112650.0,112640.0,1.07680825]
[1756319042270,0.49778467,112650.0,112640.0,1.07680825]
[1756319042662,0.45040608,112650.0,112640.0,1.07680825]
[1756319043073,0.45910531,112650.0,112640.0,1.07680825]
[1756319043275,0.49775531,112650.0,112640.0,1.07680825]
[1756319043574,0.62822211,112650.0,112640.0,0.25124825]
[1756319043772,0.62822211,112650.0,112640.0,1.07676825]
[1756319044274,0.62822211,112650.0,112640.0,0.25124825]
[1756319044471,0.62822211,112650.0,112640.0,1.07676825]
[1756319045567,0.62822211,112650.0,112640.0,1.87195433]
[1756319045568,0.01602,112650.0,112640.0,1.87195433]
[1756319045772,0.0388,112650.0,112640.0,1.87195433]
[1756319046170,0.01602,112650.0,112640.0,1.87195433]
[1756319046770,0.60354608,112660.0,112650.0,0.1443168]
[1756319046970,0.6541422,112660.0,112650.0,0.2310968]
[1756319047373,0.6837522,112660.0,112650.0,0.2310968]
[1756319047575,0.6541422,112660.0,112650.0,0.2310968]
[1756319047775,0.6837522,112660.0,112650.0,0.2310968]
[1756319047971,0.11513612,112660.0,112650.0,0.2310968]
[1756319048170,0.53928454,112660.0,112650.0,0.2310968]
[1756319048381,0.6541446,112660.0,112650.0,0.2310968]
[1756319048585,0.6837546,112660.0,112650.0,0.2310968]
[1756319048979,0.6541446,112660.0,112650.0,0.2310968]
[1756319049381,0.21975852,112660.0,112650.0,0.2310968]
[1756319049581,0.5653957,112660.0,112650.0,0.2310968]
[1756319050387,0.05064962,112660.0,112650.0,0.91548288]
[1756319050586,0.02611116,112660.0,112650.0,0.91548288]
[1756319050888,0.04183116,112660.0,112650.0,0.91548288]
[1756319051084,0.06461116,112660.0,112650.0,0.4810968]
[1756319051280,0.10009116,112660.0,112650.0,0.91548288]
[1756319051482,0.04183116,112660.0,112650.0,0.91548288]
[1756319051682,0.07367102,112660.0,112650.0,0.91548288]
[1756319051983,0.08954102,112660.0,112650.0,0.4810968]
[1756319052188,0.07367102,112660.0,112650.0,0.91548288]
[1756319052390,0.07368082,112660.0,112650.0,0.91548288]
[1756319052791,0.08955082,112660.0,112650.0,0.91548288]
[1756319053092,0.06342986,112660.0,112650.0,0.91548288]
[1756319053291,0.05437,112660.0,112650.0,0.91548288]
[1756319053487,0.0385,112660.0,112650.0,0.91548288]
[1756319053792,0.01572,112660.0,112650.0,0.91548288]
[1756319053985,0.05437,112660.0,112650.0,0.91548288]
[1756319054191,0.07398,112660.0,112650.0,0.91548288]
[1756319054394,0.10484003,112660.0,112650.0,0.91548288]
[1756319054585,0.06687003,112660.0,112650.0,0.91548288]
[1756319054789,0.10886193,112660.0,112650.0,0.91548288]
[1756319055092,0.05060193,112660.0,112650.0,0.91548288]
[1756319055594,0.0418419,112660.0,112650.0,0.91548288]
[1756319056792,0.05072293,112660.0,112650.0,0.91548288]
[1756319057495,0.05072293,112660.0,112650.0,0.4810968]
[1756319057688,0.05072293,112660.0,112650.0,0.91548288]
[1756319058396,0.05072293,112660.0,112650.0,0.4810968]
[1756319058594,0.0261219,112660.0,112650.0,0.91548288]
[1756319059294,0.05065798,112660.0,112650.0,0.91548288]
[1756319059793,0.05067272,112660.0,112650.0,0.91548288]
[1756319059997,0.02613664,112660.0,112650.0,0.91548288]
[1756319060492,0.04185664,112660.0,112650.0,1.74060288]
[1756319061192,0.02613664,112660.0,112650.0,1.74060288]
[1756319061782,0.03509418,112660.0,112650.0,1.74060288]
[1756319062190,0.03509418,112660.0,112650.0,1.3062168]
[1756319062394,0.03509418,112660.0,112650.0,1.74060288]
[1756319064496,0.02613664,112660.0,112650.0,1.74060288]
[1756319065195,0.13060554,112660.0,112650.0,0.4810968]
[1756319065383,0.12221664,112660.0,112650.0,1.3060568]
[1756319065590,0.04185664,112660.0,112650.0,1.3060568]
[1756319066189,0.05095003,112660.0,112650.0,1.3060568]
[1756319066395,0.13969893,112660.0,112650.0,1.3060568]
[1756319066989,0.57408501,112660.0,112650.0,1.3060568]
[1756319067499,0.13969893,112660.0,112650.0,1.3060568]
[1756319067700,0.13969893,112660.0,112650.0,0.4810968]
[1756319067898,0.13969893,112660.0,112650.0,1.3060168]
[1756319068592,0.61282501,112660.0,112650.0,1.3060168]
[1756319069403,0.57408501,112660.0,112650.0,1.3060168]
[1756319069799,0.61282501,112660.0,112650.0,1.3060168]
[1756319070304,0.63759501,112660.0,112650.0,0.39234]
[1756319070602,0.2103568,112650.0,112640.0,0.08393355]
[1756319070802,0.67087952,112650.0,112640.0,0.98562355]
[1756319071304,0.64474288,112650.0,112640.0,0.98562355]
[1756319072804,0.64474288,112650.0,112640.0,1.07438815]
[1756319073005,0.61710288,112650.0,112640.0,1.07438815]
[1756319073705,0.64474288,112650.0,112640.0,1.07438815]
[1756319073901,0.64474288,112650.0,112640.0,0.24954815]
[1756319074308,0.64474288,112650.0,112640.0,0.98558355]
[1756319074506,0.64474288,112650.0,112640.0,0.96096355]
[1756319074806,0.64474288,112650.0,112640.0,0.13616355]
[1756319074997,1.2817007,112650.0,112640.0,0.84419355]
[1756319075905,1.2817007,112650.0,112640.0,0.98554355]
[1756319076106,1.2817007,112650.0,112640.0,0.24954865]
[1756319076304,0.83144462,112650.0,112640.0,1.04073865]
[1756319076496,0.83144462,112650.0,112640.0,1.07430865]
[1756319076497,1.2817007,112650.0,112640.0,1.07430865]
[1756319076697,1.25554288,112650.0,112640.0,1.07430865]
[1756319076898,1.28169845,112650.0,112640.0,0.98554355]
[1756319077408,1.25554288,112650.0,112640.0,0.07430355]
[1756319077608,1.28169619,112650.0,112640.0,0.84419355]
[1756319078303,1.28169619,112650.0,112640.0,0.04654355]
[1756319078704,1.28169619,112650.0,112640.0,0.84415355]
[1756319079112,1.28169619,112650.0,112640.0,0.90865355]
[1756319079306,0.84731011,112650.0,112640.0,0.98550355]
[1756319079612,1.03169619,112650.0,112640.0,1.07426875]
[1756319079911,1.03169619,112650.0,112640.0,0.98550355]
[1756319080708,1.03169619,112650.0,112640.0,0.94222355]
[1756319080910,1.03169619,112650.0,112640.0,0.98550355]
[1756319081611,1.17909619,112650.0,112640.0,0.98550355]
[1756319081812,1.03169619,112650.0,112640.0,0.98550355]
[1756319083111,0.59731011,112650.0,112640.0,0.98550355]
[1756319083410,1.03169619,112650.0,112640.0,0.98550355]
[1756319084206,0.59731011,112650.0,112640.0,0.98550355]
[1756319084505,0.98818619,112650.0,112640.0,0.98550355]
[1756319084706,1.00405619,112650.0,112640.0,0.98550355]
[1756319085004,0.64325619,112650.0,112640.0,0.98550355]
[1756319085210,1.00405619,112650.0,112640.0,0.98550355]
[1756319085707,1.00554288,112650.0,112640.0,0.95193355]
[1756319086009,1.00554288,112650.0,112640.0,0.98538355]
[1756319086806,0.5711568,112650.0,112640.0,0.98531317]
[1756319087100,1.00554288,112650.0,112640.0,0.98531317]
[1756319088004,1.00554288,112650.0,112640.0,1.07407837]
[1756319088218,0.97790288,112650.0,112640.0,1.07407837]
[1756319088711,1.00554288,112650.0,112640.0,1.07407837]
[1756319089211,1.00554288,112650.0,112640.0,0.24947837]
[1756319089418,1.00554288,112650.0,112640.0,0.98523317]
[1756319089915,1.00554288,112650.0,112640.0,0.16071317]
[1756319090216,1.00554288,112650.0,112640.0,0.98523317]
[1756319090915,1.00554288,112650.0,112640.0,1.07399847]
[1756319092617,1.00554288,112650.0,112640.0,0.24947847]
[1756319092812,1.00554288,112650.0,112640.0,1.07391847]
[1756319094219,1.00554288,112650.0,112640.0,0.24947847]
[1756319094419,1.00554288,112650.0,112640.0,1.07387847]
[1756319098420,1.03168987,112650.0,112640.0,1.07387847]
[1756319098715,1.03168987,112650.0,112640.0,1.07375847]
[1756319099529,1.03168987,112650.0,112640.0,0.24947847]
[1756319099713,1.03168987,112650.0,112640.0,1.07375827]
[1756319099914,0.59730379,112650.0,112640.0,0.98495317]
[1756319100114,1.03168987,112650.0,112640.0,0.98495317]
[1756319100813,1.00405027,112650.0,112640.0,1.07371827]
[1756319101320,1.03278027,112650.0,112640.0,1.07371827]
[1756319101615,1.03278027,112650.0,112640.0,0.08316]
[1756319101808,1.03278027,112650.0,112640.0,0.85131]
[1756319102213,1.03278027,112650.0,112640.0,0.88957]
[1756319102412,1.03278027,112650.0,112640.0,0.92129]
[1756319103822,1.03278027,112650.0,112640.0,1.0513246]
[1756319104823,1.03278027,112650.0,112640.0,0.96256]
[1756319105023,1.03278027,112650.0,112640.0,0.13836]
[1756319105320,1.71716635,112650.0,112640.0,0.02711]
[1756319105518,0.2143044,112640.0,112630.0,0.92215]
[1756319105824,1.03563747,112640.0,112630.0,0.96342]
[1756319107012,0.60125139,112640.0,112630.0,0.96342]
[1756319107218,1.03563747,112640.0,112630.0,0.96342]
[1756319111122,1.03563747,112640.0,112630.0,1.0521925]
[1756319113124,1.03563408,112640.0,112630.0,1.0521925]
[1756319113433,1.00949048,112640.0,112630.0,1.0521925]
[1756319113629,1.00949048,112640.0,112630.0,0.2280725]
[1756319113929,1.00949048,112640.0,112630.0,1.0519925]
[1756319114432,1.00949048,112640.0,112630.0,0.96322]
[1756319114833,1.00949048,112640.0,112630.0,1.0519926]
[1756319115228,1.00949048,112640.0,112630.0,0.96322]
[1756319115625,1.03563265,112640.0,112630.0,0.96322]
[1756319115833,0.60124657,112640.0,112630.0,0.96322]
[1756319116030,1.03563265,112640.0,112630.0,1.0519926]
[1756319116634,0.74864657,112640.0,112630.0,1.0519926]
[1756319116835,1.18303265,112640.0,112630.0,1.0519926]
[1756319117036,0.74864657,112640.0,112630.0,1.0519926]
[1756319117334,1.18303265,112640.0,112630.0,1.0519926]
[1756319118336,0.40349217,112640.0,112630.0,1.3019926]
[1756319118537,0.38694217,112640.0,112630.0,0.91245868]
[1756319118736,0.38694217,112640.0,112630.0,0.4780726]
[1756319119037,0.38694217,112640.0,112630.0,1.3019126]
[1756319119238,0.02614217,112640.0,112630.0,1.3019126]
[1756319120439,0.02614217,112640.0,112630.0,0.4780726]
[1756319120739,0.46052825,112640.0,112630.0,1.3018726]
[1756319120938,0.46052825,112640.0,112630.0,0.4780726]
[1756319121237,0.46052825,112640.0,112630.0,1.3018726]
[1756319122439,0.47707825,112640.0,112630.0,0.4780726]
[1756319122638,0.55733825,112640.0,112630.0,1.3017926]
[1756319122843,1.00690295,112640.0,112630.0,1.3017926]
[1756319123436,1.00690295,112640.0,112630.0,0.4780726]
[1756319123643,1.03563295,112640.0,112630.0,0.4780726]
[1756319123839,1.03563295,112640.0,112630.0,1.3017926]
[1756319124740,1.03563295,112640.0,112630.0,0.4780726]
[1756319124943,1.03563295,112640.0,112630.0,1.3017926]
[1756319125145,1.03563295,112640.0,112630.0,0.93126]
[1756319125345,1.03563295,112640.0,112630.0,0.96298]
[1756319126343,1.03563295,112640.0,112630.0,0.1393]
[1756319126542,1.03563295,112640.0,112630.0,0.96294]
[1756319127940,0.0887726,112630.0,112620.0,0.08909]
[1756319128142,1.00949868,112630.0,112620.0,0.94445]
[1756319128444,1.00949868,112630.0,112620.0,0.96294]
[1756319128845,1.00949868,112630.0,112620.0,0.9629]
[1756319129340,1.00949868,112630.0,112620.0,0.10758]
[1756319129535,1.0356491,112630.0,112620.0,0.9656]
[1756319129738,0.0887804,112620.0,112610.0,0.16495764]
[1756319129945,0.64891648,112620.0,112610.0,0.98855764]
[1756319130341,1.00971648,112620.0,112610.0,0.98855764]
[1756319130842,1.00971648,112620.0,112610.0,0.96907]
[1756319131144,1.25971648,112620.0,112610.0,0.02994]
[1756319131446,1.28585715,112620.0,112610.0,0.94696]
[1756319131645,1.28585715,112620.0,112610.0,0.97107]
[1756319133348,1.28585715,112620.0,112610.0,0.96907]
[1756319133646,0.2145379,112610.0,112600.0,0.11105]
[1756319133847,1.00972398,112610.0,112600.0,0.96903]
[1756319135449,1.01862065,112610.0,112600.0,0.96903]
[1756319135850,1.01862065,112610.0,112600.0,0.96899]
[1756319136246,1.01862065,112610.0,112600.0,0.12136]
[1756319136551,1.01862065,112610.0,112600.0,0.9105]
[1756319136745,1.01862065,112610.0,112600.0,0.94492]
[1756319136947,1.01862065,112610.0,112600.0,0.96903]
[1756319137245,1.01862065,112610.0,112600.0,0.89154]
[1756319137445,1.01862065,112610.0,112600.0,0.06798]
[1756319137652,0.2145457,112600.0,112590.0,0.14547]
[1756319137842,1.44411786,112600.0,112590.0,0.94488]
[1756319138351,1.00973178,112600.0,112590.0,0.96899]
[1756319138950,1.00973178,112600.0,112590.0,0.94488]
[1756319139151,0.5753457,112600.0,112590.0,0.96899]
[1756319139348,1.00973178,112600.0,112590.0,0.96899]
[1756319139552,0.5753457,112600.0,112590.0,0.97099]
[1756319139754,0.96577178,112600.0,112590.0,0.97099]
[1756319140056,0.98164178,112600.0,112590.0,0.97099]
[1756319140443,0.37648,112600.0,112590.0,1.3097935]
[1756319141556,0.81086608,112600.0,112590.0,1.3097935]
[1756319144359,0.93936178,112600.0,112590.0,0.4862735]
[1756319144554,0.93936178,112600.0,112590.0,1.22103]
[1756319144957,0.96745178,112600.0,112590.0,1.22103]
[1756319145158,0.96745178,112600.0,112590.0,1.3098336]
[1756319145358,0.85056608,112600.0,112590.0,1.3098336]
[1756319145550,0.81086608,112600.0,112590.0,1.3098336]
[1756319145752,0.49838927,112610.0,112600.0,0.08847]
[1756319145956,1.01660488,112610.0,112600.0,0.14547]
[1756319146156,1.01660488,112610.0,112600.0,0.2342657]
[1756319147257,1.04469488,112610.0,112600.0,0.2342657]
[1756319147664,1.01660488,112610.0,112600.0,0.2342657]
[1756319147865,1.04469008,112610.0,112600.0,0.2342657]
[1756319148064,1.01660008,112610.0,112600.0,1.0577857]
[1756319148661,0.92781228,112610.0,112600.0,1.0577857]
[1756319149562,0.56701228,112610.0,112600.0,1.0577857]
[1756319150865,0.65580008,112610.0,112600.0,0.2342657]
[1756319151066,1.01862055,112610.0,112600.0,1.0577457]
[1756319151466,1.01862055,112610.0,112600.0,0.11105]
[1756319151766,1.04470301,112610.0,112600.0,0.94484]
[1756319151973,1.04470301,112610.0,112600.0,0.96895]
[1756319154072,1.04470301,112610.0,112600.0,0.91042]
[1756319155169,1.04470301,112610.0,112600.0,0.94484]
[1756319155477,1.04470301,112610.0,112600.0,1.0577055]
[1756319155478,0.89280521,112610.0,112600.0,1.0577055]
[1756319155674,0.90867521,112610.0,112600.0,1.0577055]
[1756319156163,0.99746291,112610.0,112600.0,1.0577055]
[1756319156563,1.14486291,112610.0,112600.0,1.0577055]
[1756319156772,1.19210291,112610.0,112600.0,1.0576655]
[1756319156974,1.16401291,112610.0,112600.0,1.0576655]
[1756319157770,1.19210291,112610.0,112600.0,1.0576655]
[1756319158476,1.19210291,112610.0,112600.0,0.96887]
[1756319158782,1.19210291,112610.0,112600.0,0.94476]
[1756319159267,1.19210291,112610.0,112600.0,0.96811]
[1756319159973,1.19210291,112610.0,112600.0,1.0569053]
[1756319160375,1.19210291,112610.0,112600.0,0.2335053]
[1756319160574,1.19210291,112610.0,112600.0,0.96807]
[1756319160776,1.19210291,112610.0,112600.0,0.14471]
[1756319161074,1.19210291,112610.0,112590.0,0.95639484]
[1756319161075,0.2148453,112600.0,112590.0,0.95639484]
[1756319161272,1.47049992,112600.0,112590.0,0.08372]
[1756319161478,1.47049992,112600.0,112590.0,0.88891]
[1756319161681,1.47049992,112600.0,112590.0,0.06555]
[1756319161982,0.2148532,112590.0,112580.0,0.93043]
[1756319162171,0.67532174,112590.0,112580.0,0.05022]
[1756319162375,0.214861,112580.0,112570.0,0.2103383]
[1756319162576,0.64924708,112580.0,112570.0,1.0518283]
[1756319163074,0.64724708,112580.0,112570.0,0.96301]
[1756319163576,1.00804708,112580.0,112570.0,1.0518289]
[1756319163979,1.00804708,112580.0,112570.0,1.0538289]
[1756319164180,1.00804708,112580.0,112570.0,0.2305089]
[1756319164376,1.00804708,112580.0,112570.0,1.0538689]
[1756319164778,1.00804708,112580.0,112570.0,1.0518689]
[1756319165182,1.00804708,112580.0,112570.0,0.13969]
[1756319165385,0.214869,112570.0,112560.0,0.07357]
[1756319165676,0.214869,112570.0,112560.0,1.0518768]
[1756319165677,0.99247094,112570.0,112560.0,1.0518768]
[1756319165882,1.00834094,112570.0,112560.0,1.0518768]
[1756319166177,0.02615586,112570.0,112560.0,2.09706288]
[1756319166379,0.02615586,112570.0,112560.0,1.6626768]
[1756319166677,0.02615586,112570.0,112560.0,2.09706288]
[1756319166884,0.0002,112580.0,112570.0,0.2285089]
[1756319167082,0.95183478,112590.0,112580.0,0.228501]
[1756319167083,0.67558241,112590.0,112580.0,0.228501]
[1756319167285,0.64751185,112590.0,112580.0,1.051861]
[1756319168274,0.55870315,112590.0,112580.0,1.051861]
[1756319168480,0.02613707,112590.0,112580.0,1.301861]
[1756319168680,0.02613707,112590.0,112580.0,2.09704708]
[1756319168976,0.57930688,112600.0,112590.0,0.2284931]
[1756319169182,0.647504,112600.0,112590.0,0.2284931]
[1756319169680,0.647504,112600.0,112590.0,1.0518531]
[1756319169984,1.036174,112600.0,112590.0,0.13969]
[1756319170185,1.036174,112600.0,112590.0,0.96305]